fUST/lending_fUST_20250717
["ID","MTS","AMOUNT","RATE_DAILY","PERIOD"]
[372652843,1752735033844,-460.0,0.00018126,2]
[372652844,1752735033854,-2440.55,0.00018126,2]
[372652845,1752735033864,-460.0,0.00018126,2]
[372652846,1752735033875,-1913.65,0.00018126,2]
[372652847,1752735033885,-460.0,0.00018126,2]
[372652848,1752735033895,-460.0,0.00018126,2]
[372652849,1752735033906,-1594.34,0.00018126,2]
[372652850,1752735033916,-626.01,0.00018126,2]
[372652851,1752735033926,-460.0,0.00018127,2]
[372652852,1752735033936,-461.61662561,0.00018127,2]
[372652853,1752735033946,-460.0,0.00018127,2]
[372652854,1752735033956,-460.0,0.00018127,2]
[372652855,1752735033966,-460.0,0.00018127,2]
[372652856,1752735033975,-460.0,0.00018127,2]
[372652857,1752735033985,-460.0,0.00018127,2]
[372652858,1752735033995,-460.0,0.00018127,2]
[372652859,1752735034004,-460.0,0.00018127,2]
[372652860,1752735034014,-460.0,0.00018127,2]
[372652861,1752735034027,-460.0,0.00018127,2]
[372652862,1752735034037,-460.0,0.00018127,2]
[372652863,1752735034046,-462.12077759,0.00018127,2]
[372652864,1752735034056,-460.0,0.00018127,2]
[372652865,1752735034065,-460.0,0.00018127,2]
[372652866,1752735034074,-460.0,0.00018127,2]
[372652867,1752735034083,-609.79093867,0.00018127,2]
[372652868,1752735034093,-460.0,0.00018127,2]
[372652869,1752735034102,-460.0,0.00018127,2]
[372652870,1752735034111,-556.78373313,0.00018127,2]
[372652871,1752735034121,-460.0,0.00018127,2]
[372652872,1752735034131,-460.0,0.00018127,2]
[372652873,1752735034141,-460.0,0.00018127,2]
[372652874,1752735034150,-1300.71,0.00018127,2]
[372652875,1752735034159,-691.63,0.00018127,2]
[372652876,1752735034171,-500.0,0.00018127,2]
[372652877,1752735034181,-500.0,0.00018127,2]
[372652878,1752735034191,-460.0,0.00018127,2]
[372652879,1752735034200,-460.0,0.00018127,2]
[372652880,1752735034211,-460.5737464,0.00018127,2]
[372652881,1752735034221,-460.0,0.00018127,2]
[372652882,1752735034231,-460.0,0.00018127,2]
[372652883,1752735034240,-460.0,0.00018127,2]
[372652884,1752735034250,-460.5744704,0.00018127,2]
[372652885,1752735034260,-474.33,0.00018127,2]
[372652886,1752735034272,-460.0,0.00018127,2]
[372652887,1752735034282,-646.42,0.00018127,2]
[372652888,1752735034294,-460.0,0.00018127,2]
[372652889,1752735034305,-498.58,0.00018127,2]
[372652890,1752735034322,-460.0,0.00018127,2]
[372652891,1752735034360,-460.0,0.00018127,2]
[372652892,1752735034384,-913.15,0.00018127,2]
[372652893,1752735034396,-531.78,0.00018127,2]
[372652894,1752735034406,-460.0,0.00018127,2]
[372652895,1752735034416,-541.70417982,0.00018127,2]
[372652896,1752735034425,-460.0,0.00018127,2]
[372652897,1752735034435,-579.42869758,0.00018127,2]
[372652898,1752735034444,-460.0,0.00018127,2]
[372652899,1752735034454,-460.0,0.00018127,2]
[372652900,1752735034463,-460.0,0.00018128,2]
[372652901,1752735034472,-460.0,0.00018128,2]
[372652902,1752735034482,-463.10318576,0.00018128,2]
[372652903,1752735034491,-460.0,0.00018128,2]
[372652904,1752735034501,-460.0,0.00018128,2]
[372652905,1752735034510,-460.0,0.00018128,2]
[372652906,1752735034520,-460.0,0.00018128,2]
[372652907,1752735034530,-460.0,0.00018128,2]
[372652908,1752735034539,-460.0,0.00018128,2]
[372652909,1752735034549,-460.0,0.00018128,2]
[372652910,1752735034560,-460.0,0.00018128,2]
[372652911,1752735034569,-460.0,0.00018128,2]
[372652912,1752735034580,-460.0,0.00018128,2]
[372652913,1752735034590,-460.0,0.0001813,2]
[372652914,1752735034599,-460.0,0.0001813,2]
[372652915,1752735034609,-460.0,0.0001813,2]
[372652916,1752735034618,-460.0,0.0001813,2]
[372652917,1752735034628,-460.0,0.0001813,2]
[372652918,1752735034638,-460.0,0.0001813,2]
[372652919,1752735034647,-460.0,0.0001813,2]
[372652920,1752735034658,-460.0,0.0001813,2]
[372652921,1752735034667,-460.0,0.0001813,2]
[372652922,1752735034677,-460.0,0.0001813,2]
[372652923,1752735034687,-460.0,0.0001813,2]
[372652924,1752735034696,-732.55,0.0001813,2]
[372652925,1752735034706,-500.0,0.0001813,2]
[372652926,1752735034716,-500.0,0.0001813,2]
[372652927,1752735034726,-551.29,0.0001813,2]
[372652928,1752735034736,-460.0,0.0001813,2]
[372652929,1752735034746,-460.0,0.0001813,2]
[372652930,1752735034755,-460.0,0.0001813,2]
[372652931,1752735034765,-460.0,0.0001813,2]
[372652932,1752735034774,-460.0,0.0001813,2]
[372652933,1752735034784,-2703.32,0.0001813,2]
[372652934,1752735034794,-799.66,0.0001813,2]
[372652935,1752735034803,-460.0,0.0001813,2]
[372652936,1752735034813,-724.56,0.0001813,2]
[372652937,1752735034823,-460.0,0.00018131,2]
[372652938,1752735034833,-500.0,0.00018131,2]
[372652939,1752735034843,-460.0,0.00018131,2]
[372652940,1752735034853,-460.0,0.00018131,2]
[372652941,1752735034863,-460.0,0.00018131,2]
[372652942,1752735034872,-460.0,0.00018131,2]
[372652943,1752735034882,-460.0,0.00018131,2]
[372652944,1752735034892,-460.0,0.00018131,2]
[372652945,1752735034901,-460.0,0.00018131,2]
[372652946,1752735034911,-460.0,0.00018131,2]
[372652947,1752735034920,-460.0,0.00018131,2]
[372652948,1752735034930,-460.0,0.00018131,2]
[372652949,1752735034940,-460.0,0.00018131,2]
[372652950,1752735034950,-460.0,0.00018131,2]
[372652951,1752735034960,-460.0,0.00018131,2]
[372652952,1752735034969,-460.0,0.00018131,2]
[372652953,1752735034979,-460.0,0.00018131,2]
[372652954,1752735034988,-460.0,0.00018131,2]
[372652955,1752735034998,-460.0,0.00018131,2]
[372652956,1752735035007,-460.0,0.00018131,2]
[372652957,1752735035017,-460.0,0.00018131,2]
[372652958,1752735035026,-500.0,0.00018131,2]
[372652959,1752735035036,-1211.48,0.00018131,2]
[372652960,1752735035047,-1502.89,0.00018131,2]
[372652961,1752735035057,-664.88,0.00018131,2]
[372652962,1752735035070,-1887.15,0.00018131,2]
[372652963,1752735035102,-507.28,0.00018131,2]
[372652964,1752735035114,-228.64777948,0.00018132,2]
[372652965,1752735035124,-460.0,0.00018132,2]
[372652966,1752735035133,-460.0,0.00018132,2]
[372652967,1752735035143,-460.0,0.00018132,2]
[372652968,1752735035153,-178.93447963,0.00018132,2]
[372652969,1752735035163,-460.0,0.00018132,2]
[372652970,1752735035178,-460.0,0.00018132,2]
[372652971,1752735035188,-460.0,0.00018132,2]
[372652972,1752735035198,-240.02098606,0.00018132,2]
[372652973,1752735035208,-460.0,0.00018132,2]
[372652974,1752735035219,-460.0,0.00018132,2]
[372652975,1752735035229,-460.0,0.00018132,2]
[372652976,1752735035239,-460.0,0.00018132,2]
[372652977,1752735035248,-500.69352317,0.00018132,2]
[372652978,1752735035259,-460.0,0.00018132,2]
[372652979,1752735035268,-460.0,0.00018132,2]
[372652980,1752735035277,-460.0,0.00018132,2]
[372652981,1752735035287,-461.37318142,0.00018132,2]
[372652982,1752735035297,-460.0,0.00018132,2]
[372652983,1752735035310,-460.0,0.00018132,2]
[372652984,1752735035319,-460.0,0.00018132,2]
[372652985,1752735035330,-460.0,0.00018132,2]
[372652986,1752735035340,-522.87,0.00018132,2]
[372652987,1752735035349,-460.0,0.00018132,2]
[372652988,1752735035359,-460.0,0.00018132,2]
[372652989,1752735035369,-460.0,0.00018132,2]
[372652990,1752735035378,-460.0,0.00018132,2]
[372652991,1752735035388,-460.0,0.00018132,2]
[372652992,1752735035397,-460.0,0.00018132,2]
[372652993,1752735035407,-460.0,0.00018132,2]
[372652994,1752735035417,-460.0,0.00018132,2]
[372652995,1752735035427,-460.0,0.00018132,2]
[372652996,1752735035436,-460.0,0.00018132,2]
[372652997,1752735035446,-460.0,0.00018132,2]
[372652998,1752735035456,-460.0,0.00018132,2]
[372652999,1752735035466,-460.0,0.00018132,2]
[372653000,1752735035476,-460.0,0.00018132,2]
[372653001,1752735035486,-460.0,0.00018132,2]
[372653002,1752735035495,-460.0,0.00018132,2]
[372653003,1752735035505,-460.0,0.00018132,2]
[372653004,1752735035515,-460.0,0.00018132,2]
[372653005,1752735035524,-460.0,0.00018132,2]
[372653006,1752735035534,-640.23,0.00018132,2]
[372653007,1752735035544,-625.48,0.00018132,2]
[372653008,1752735035554,-460.0,0.00018132,2]
[372653009,1752735035564,-460.0,0.00018132,2]
[372653010,1752735035575,-460.0,0.00018132,2]
[372653011,1752735035585,-460.0,0.00018132,2]
[372653012,1752735035597,-460.0,0.00018132,2]
[372653013,1752735035611,-460.0,0.00018132,2]
[372653014,1752735035633,-460.0,0.00018132,2]
[372653015,1752735035651,-460.0,0.00018132,2]
[372653016,1752735035661,-460.0,0.00018132,2]
[372653017,1752735035670,-460.0,0.00018132,2]
[372653018,1752735035680,-460.0,0.00018132,2]
[372653019,1752735035690,-460.0,0.00018132,2]
[372653020,1752735035699,-462.66013177,0.00018132,2]
[372653021,1752735035709,-462.46780307,0.00018132,2]
[372653022,1752735035719,-460.0,0.00018132,2]
[372653023,1752735035729,-460.0,0.00018132,2]
[372653024,1752735035738,-460.0,0.00018132,2]
[372653025,1752735035747,-460.0,0.00018132,2]
[372653026,1752735035757,-460.0,0.00018132,2]
[372653027,1752735035767,-460.0,0.00018132,2]
[372653028,1752735035776,-500.0,0.00018132,2]
[372653029,1752735035786,-539.9,0.00018132,2]
[372653030,1752735035796,-460.0,0.00018132,2]
[372653031,1752735035806,-709.79,0.00018132,2]
[372653032,1752735035815,-460.0,0.00018132,2]
[372653033,1752735035824,-460.0,0.00018132,2]
[372653034,1752735035835,-460.0,0.00018132,2]
[372653035,1752735035845,-460.0,0.00018132,2]
[372653036,1752735035854,-460.0,0.00018132,2]
[372653037,1752735035864,-460.0,0.00018132,2]
[372653038,1752735035874,-460.0,0.00018132,2]
[372653039,1752735035884,-460.0,0.00018132,2]
[372653040,1752735035894,-460.0,0.00018132,2]
[372653041,1752735035904,-460.0,0.00018132,2]
[372653042,1752735035914,-415.8790291,0.00018132,2]
[372653043,1752735035924,-645.82,0.00018132,2]
[372653044,1752735035933,-460.0,0.00018132,2]
[372653045,1752735035943,-460.0,0.00018132,2]
[372653046,1752735035953,-500.0,0.00018133,2]
[372653047,1752735035963,-447.36686639,0.00018133,2]
[372653048,1752735035972,-460.0,0.00018133,2]
[372653049,1752735035982,-460.0,0.00018133,2]
[372653050,1752735035991,-460.0,0.00018133,2]
[372653051,1752735036000,-464.07940369,0.00018133,2]
[372653052,1752735036011,-460.0,0.00018133,2]
[372653053,1752735036021,-460.0,0.00018133,2]
[372653054,1752735036030,-460.0,0.00018133,2]
[372653055,1752735036039,-460.0,0.00018133,2]
[372653056,1752735036049,-460.0,0.00018133,2]
[372653057,1752735036058,-460.0,0.00018133,2]
[372653058,1752735036069,-500.66032079,0.00018133,2]
[372653059,1752735036079,-460.0,0.00018133,2]
[372653060,1752735036088,-460.0,0.00018133,2]
[372653061,1752735036099,-460.0,0.00018133,2]
[372653062,1752735036108,-460.0,0.00018133,2]
[372653063,1752735036118,-460.0,0.00018133,2]
[372653064,1752735036127,-460.0,0.00018133,2]
[372653065,1752735036137,-460.0,0.00018133,2]
[372653066,1752735036146,-460.0,0.00018133,2]
[372653067,1752735036155,-460.0,0.00018133,2]
[372653068,1752735036165,-462.92783193,0.00018133,2]
[372653069,1752735036181,-460.0,0.00018133,2]
[372653070,1752735036191,-461.24794855,0.00018133,2]
[372653071,1752735036201,-460.0,0.00018133,2]
[372653072,1752735036211,-460.0,0.00018133,2]
[372653073,1752735036221,-460.0,0.00018133,2]
[372653074,1752735036230,-460.0,0.00018133,2]
[372653075,1752735036240,-460.0,0.00018133,2]
[372653076,1752735036250,-604.72782865,0.00018133,2]
[372653077,1752735036260,-460.0,0.00018133,2]
[372653078,1752735036269,-460.0,0.00018133,2]
[372653079,1752735036279,-460.66235822,0.00018133,2]
[372653080,1752735036288,-460.0,0.00018133,2]
[372653081,1752735036298,-460.0,0.00018133,2]
[372653082,1752735036307,-225.57608507,0.00018133,2]
[372653083,1752735036317,-460.0,0.00018133,2]
[372653084,1752735036328,-460.0,0.00018133,2]
[372653085,1752735036338,-460.0,0.00018133,2]
[372653086,1752735036348,-460.0,0.00018133,2]
[372653087,1752735036358,-460.0,0.00018133,2]
[372653088,1752735036368,-460.0,0.00018133,2]
[372653089,1752735036378,-460.0,0.00018133,2]
[372653090,1752735036387,-460.0,0.00018133,2]
[372653091,1752735036397,-460.0,0.00018133,2]
[372653092,1752735036407,-460.0,0.00018133,2]
[372653093,1752735036417,-829.95,0.00018133,2]
[372653094,1752735036426,-460.0,0.00018133,2]
[372653095,1752735036436,-460.0,0.00018133,2]
[372653096,1752735036445,-460.0,0.00018133,2]
[372653097,1752735036455,-460.0,0.00018133,2]
[372653098,1752735036465,-460.0,0.00018133,2]
[372653099,1752735036475,-460.0,0.00018133,2]
[372653100,1752735036484,-460.0,0.00018133,2]
[372653101,1752735036494,-460.0,0.00018133,2]
[372653102,1752735036503,-500.0,0.00018134,2]
[372653103,1752735036513,-460.0,0.00018135,2]
[372653104,1752735036522,-463.66762211,0.00018135,2]
[372653105,1752735036532,-491.34998034,0.00018135,2]
[372653106,1752735036541,-462.54914876,0.00018135,2]
[372653107,1752735036550,-460.0,0.00018135,2]
[372653108,1752735036559,-460.0,0.00018135,2]
[372653109,1752735036569,-460.0,0.00018135,2]
[372653110,1752735036579,-460.0,0.00018135,2]
[372653111,1752735036589,-259.32973318,0.00018135,2]
[372653112,1752735036598,-460.0,0.00018135,2]
[372653113,1752735036607,-460.0,0.00018135,2]
[372653114,1752735036616,-460.0,0.00018135,2]
[372653115,1752735036626,-460.0,0.00018135,2]
[372653116,1752735036635,-460.0,0.00018135,2]
[372653117,1752735036644,-460.0,0.00018135,2]
[372653118,1752735036654,-500.0,0.00018135,2]
[372653119,1752735036663,-460.0,0.00018135,2]
[372653120,1752735036673,-460.0,0.00018135,2]
[372653121,1752735036683,-460.0,0.00018135,2]
[372653122,1752735036693,-460.0,0.00018135,2]
[372653123,1752735036702,-460.0,0.00018135,2]
[372653124,1752735036712,-460.0,0.00018135,2]
[372653125,1752735036722,-460.0,0.00018135,2]
[372653126,1752735036731,-423.1206457,0.00018135,2]
[372653127,1752735036741,-460.0,0.00018135,2]
[372653128,1752735036751,-460.0,0.00018135,2]
[372653129,1752735036761,-460.0,0.00018135,2]
[372653130,1752735036771,-460.0,0.00018135,2]
[372653131,1752735036780,-460.0,0.00018135,2]
[372653132,1752735036790,-460.0,0.00018135,2]
[372653133,1752735036799,-460.0,0.00018135,2]
[372653134,1752735036808,-460.0,0.00018135,2]
[372653135,1752735036818,-460.0,0.00018135,2]
[372653136,1752735036828,-460.0,0.00018135,2]
[372653137,1752735036838,-460.0,0.00018135,2]
[372653138,1752735036847,-460.0,0.00018135,2]
[372653139,1752735036856,-460.0,0.00018135,2]
[372653140,1752735036866,-479.37845129,0.00018135,2]
[372653141,1752735036875,-460.0,0.00018135,2]
[372653142,1752735036885,-460.0,0.00018135,2]
[372653143,1752735036894,-535.6638621,0.00018135,2]
[372653144,1752735036905,-460.0,0.00018135,2]
[372653145,1752735036915,-460.0,0.00018135,2]
[372653146,1752735036924,-460.0,0.00018135,2]
[372653147,1752735036934,-460.0,0.00018135,2]
[372653148,1752735036943,-460.0,0.00018135,2]
[372653149,1752735036952,-385.69904935,0.00018135,2]
[372653150,1752735036962,-2498.71531444,0.00018208,2]
[372653151,1752735036972,-85.1510794,0.0001821,2]
[372653152,1752735036982,-460.0,0.00018306,2]
[372653153,1752735036991,-460.0,0.00018306,2]
[372653154,1752735037001,-460.0,0.00018306,2]
[372653155,1752735037010,-1476.81,0.00018306,2]
[372653156,1752735037020,-2996.48,0.00018306,2]
[372653157,1752735037029,-929.92,0.00018306,2]
[372653158,1752735037039,-5792.6850748,0.00018306,2]
[372653159,1752735037185,-1079.30644084,0.00018306,2]
[372653164,1752735038206,-460.0,0.00018127,2]
[372653165,1752735038216,-460.0,0.00018127,2]
[372653166,1752735038226,-199.21322658,0.00018127,2]
[372653167,1752735038237,-151.0,0.0001821,2]
[372653168,1752735038246,-1713.78677343,0.00018306,2]
[372653169,1752735038256,-2871.0,0.00018306,2]
[372653170,1752735038269,-48543.22171093,0.00018306,2]
[372653171,1752735038278,-1000.0,0.00018308,2]
[372653172,1752735038288,-460.0,0.00018308,2]
[372653173,1752735038297,-460.0,0.00018308,2]
[372653174,1752735038307,-460.60416027,0.00018308,2]
[372653175,1752735038316,-460.0,0.00018308,2]
[372653176,1752735038325,-460.0,0.00018308,2]
[372653177,1752735038334,-460.0,0.00018308,2]
[372653178,1752735038343,-460.0,0.00018308,2]
[372653179,1752735038351,-460.0,0.00018308,2]
[372653180,1752735038360,-336.89914039,0.00018308,2]
[372653181,1752735038368,-460.0,0.00018308,2]
[372653182,1752735038376,-460.0,0.00018308,2]
[372653183,1752735038384,-460.0,0.00018308,2]
[372653184,1752735038393,-460.0,0.00018308,2]
[372653185,1752735038401,-448.98054629,0.00018308,2]
[372653186,1752735038410,-460.0,0.00018308,2]
[372653187,1752735038419,-513.95499484,0.00018308,2]
[372653188,1752735038427,-460.0,0.00018308,2]
[372653189,1752735038435,-460.0,0.00018308,2]
[372653190,1752735038443,-460.0,0.00018308,2]
[372653191,1752735038451,-597.120042,0.0001831,2]
[372653192,1752735038459,-597.120042,0.0001831,2]
[372653193,1752735038466,-460.0,0.0001831,2]
[372653194,1752735038474,-151.0,0.00018367,2]
[372653195,1752735038482,-151.0,0.00018367,2]
[372653196,1752735038489,-152.694333,0.00018367,2]
[372653197,1752735038497,-25000.0,0.00018367,2]
[372653198,1752735038504,-24846.80909142,0.00018367,2]
[372653199,1752735038513,-207.4,0.00018367,2]
[372653200,1752735038520,-352.132311,0.00018367,2]
[372653201,1752735038528,-352.132311,0.00018367,2]
[372653202,1752735038537,-500.0,0.00018372,2]
[372653203,1752735038547,-500.0,0.00018373,2]
[372653204,1752735038557,-500.0,0.00018373,2]
[372653205,1752735038566,-500.0,0.00018373,2]
[372653206,1752735038575,-2885.60653683,0.00018382,2]
[372653207,1752735038586,-460.0,0.00018396,2]
[372653208,1752735038595,-460.0,0.00018396,2]
[372653209,1752735038605,-460.0,0.00018396,2]
[372653210,1752735038614,-460.0,0.00018397,2]
[372653211,1752735038624,-460.0,0.00018397,2]
[372653212,1752735038633,-460.0,0.00018397,2]
[372653213,1752735038643,-460.0,0.00018397,2]
[372653214,1752735038653,-460.0,0.00018397,2]
[372653215,1752735038662,-460.0,0.00018397,2]
[372653216,1752735038672,-1843.02,0.00018397,2]
[372653217,1752735038682,-460.0,0.00018398,2]
[372653218,1752735038691,-460.0,0.00018398,2]
[372653219,1752735038701,-460.0,0.00018398,2]
[372653220,1752735038711,-460.0,0.00018398,2]
[372653221,1752735038721,-460.0,0.00018398,2]
[372653222,1752735038731,-460.0,0.00018398,2]
[372653223,1752735038741,-460.0,0.00018398,2]
[372653224,1752735038751,-460.0,0.00018398,2]
[372653225,1752735038760,-466.54269439,0.00018398,2]
[372653226,1752735038770,-460.0,0.000184,2]
[372653227,1752735038780,-460.0,0.000184,2]
[372653228,1752735038790,-460.0,0.000184,2]
[372653229,1752735038800,-460.0,0.000184,2]
[372653230,1752735038809,-466.04810326,0.000184,2]
[372653231,1752735038820,-460.0,0.000184,2]
[372653232,1752735038830,-460.0,0.000184,2]
[372653233,1752735038839,-460.0,0.000184,2]
[372653234,1752735038848,-460.0,0.000184,2]
[372653235,1752735038858,-3457.88,0.000184,2]
[372653236,1752735038868,-789.83,0.000184,2]
[372653237,1752735038878,-4699.05,0.000184,2]
[372653238,1752735038888,-460.0,0.000184,2]
[372653239,1752735038898,-460.45,0.000184,2]
[372653240,1752735038907,-460.0,0.000184,2]
[372653241,1752735038917,-460.0,0.000184,2]
[372653242,1752735038927,-2440.55,0.000184,2]
[372653243,1752735038936,-460.0,0.000184,2]
[372653244,1752735038947,-1913.65,0.000184,2]
[372653245,1752735038956,-460.0,0.000184,2]
[372653246,1752735038965,-477.15,0.000184,2]
[372653247,1752735038974,-1594.34,0.000184,2]
[372653248,1752735038984,-626.01,0.000184,2]
[372653249,1752735038993,-460.0,0.00018401,2]
[372653250,1752735039003,-460.0,0.00018401,2]
[372653251,1752735039013,-465.52497277,0.00018401,2]
[372653252,1752735039022,-460.0,0.00018401,2]
[372653253,1752735039032,-460.0,0.00018401,2]
[372653254,1752735039041,-460.0,0.00018401,2]
[372653255,1752735039051,-460.0,0.00018401,2]
[372653256,1752735039060,-460.0,0.00018401,2]
[372653257,1752735039070,-460.0,0.00018401,2]
[372653258,1752735039080,-460.0,0.00018401,2]
[372653259,1752735039090,-1300.71,0.00018401,2]
[372653260,1752735039100,-691.63,0.00018401,2]
[372653261,1752735039109,-460.0,0.00018401,2]
[372653262,1752735039119,-474.33,0.00018401,2]
[372653263,1752735039129,-646.42,0.00018401,2]
[372653264,1752735039139,-460.0,0.00018401,2]
[372653265,1752735039149,-498.58,0.00018401,2]
[372653266,1752735039159,-460.0,0.00018401,2]
[372653267,1752735039168,-913.15,0.00018401,2]
[372653268,1752735039178,-531.78,0.00018401,2]
[372653269,1752735039187,-460.0,0.00018401,2]
[372653270,1752735039197,-460.0,0.00018401,2]
[372653271,1752735039211,-460.0,0.00018401,2]
[372653272,1752735039221,-460.0,0.00018401,2]
[372653273,1752735039230,-460.0,0.00018402,2]
[372653274,1752735039240,-460.0,0.00018402,2]
[372653275,1752735039251,-159.62728339,0.00018402,2]
[372653276,1752735039260,-460.0,0.00018402,2]
[372653277,1752735039270,-460.0,0.00018402,2]
[372653278,1752735039279,-460.0,0.00018402,2]
[372653279,1752735039290,-460.0,0.00018402,2]
[372653280,1752735039300,-460.0,0.00018402,2]
[372653281,1752735039310,-266.04683498,0.00018402,2]
[372653282,1752735039321,-460.0,0.00018402,2]
[372653283,1752735039331,-460.0,0.00018404,2]
[372653284,1752735039341,-460.0,0.00018404,2]
[372653285,1752735039349,-460.0,0.00018404,2]
[372653286,1752735039358,-460.0,0.00018404,2]
[372653287,1752735039368,-460.0,0.00018404,2]
[372653288,1752735039377,-732.55,0.00018404,2]
[372653289,1752735039387,-551.29,0.00018404,2]
[372653290,1752735039396,-460.0,0.00018404,2]
[372653291,1752735039406,-460.0,0.00018404,2]
[372653292,1752735039416,-460.0,0.00018404,2]
[372653293,1752735039425,-460.0,0.00018404,2]
[372653294,1752735039435,-2703.32,0.00018404,2]
[372653295,1752735039444,-799.66,0.00018404,2]
[372653296,1752735039454,-460.0,0.00018404,2]
[372653297,1752735039463,-724.56,0.00018404,2]
[372653298,1752735039473,-460.0,0.00018405,2]
[372653299,1752735039483,-460.0,0.00018405,2]
[372653300,1752735039492,-460.0,0.00018405,2]
[372653301,1752735039502,-460.0,0.00018405,2]
[372653302,1752735039511,-605.44839228,0.00018405,2]
[372653303,1752735039521,-460.0,0.00018405,2]
[372653304,1752735039530,-460.0,0.00018405,2]
[372653305,1752735039539,-460.0,0.00018405,2]
[372653306,1752735039549,-460.0,0.00018405,2]
[372653307,1752735039559,-1211.48,0.00018405,2]
[372653308,1752735039569,-664.88,0.00018405,2]
[372653309,1752735039578,-1887.15,0.00018405,2]
[372653310,1752735039588,-507.28,0.00018405,2]
[372653311,1752735039598,-460.0,0.00018406,2]
[372653312,1752735039607,-460.0,0.00018406,2]
[372653314,1752735039617,-460.0,0.00018406,2]
[372653316,1752735039627,-460.0,0.00018406,2]
[372653318,1752735039637,-460.0,0.00018406,2]
[372653319,1752735039647,-460.0,0.00018406,2]
[372653320,1752735039656,-464.97307931,0.00018406,2]
[372653321,1752735039666,-465.06979185,0.00018406,2]
[372653322,1752735039676,-460.0,0.00018406,2]
[372653323,1752735039685,-460.0,0.00018406,2]
[372653324,1752735039695,-522.87,0.00018406,2]
[372653325,1752735039705,-460.0,0.00018406,2]
[372653326,1752735039714,-578.23170341,0.00018406,2]
[372653327,1752735039724,-460.0,0.00018406,2]
[372653328,1752735039734,-460.0,0.00018406,2]
[372653329,1752735039743,-460.0,0.00018406,2]
[372653330,1752735039753,-460.0,0.00018406,2]
[372653332,1752735039762,-460.0,0.00018406,2]
[372653334,1752735039772,-460.0,0.00018406,2]
[372653336,1752735039782,-460.0,0.00018406,2]
[372653338,1752735039792,-463.59719469,0.00018406,2]
[372653339,1752735039802,-460.0,0.00018406,2]
[372653340,1752735039811,-460.0,0.00018406,2]
[372653341,1752735039821,-640.23,0.00018406,2]
[372653342,1752735039831,-625.48,0.00018406,2]
[372653343,1752735039841,-460.0,0.00018406,2]
[372653344,1752735039850,-460.0,0.00018406,2]
[372653345,1752735039860,-521.72423051,0.00018406,2]
[372653346,1752735039869,-460.0,0.00018406,2]
[372653347,1752735039879,-553.62654581,0.00018406,2]
[372653348,1752735039888,-460.0,0.00018406,2]
[372653349,1752735039898,-460.0,0.00018406,2]
[372653350,1752735039908,-460.0,0.00018406,2]
[372653351,1752735039917,-404.36851286,0.00018406,2]
[372653352,1752735039926,-709.79,0.00018406,2]
[372653353,1752735039936,-460.0,0.00018406,2]